bitfinex-derivatives/quotes_ETHF0:USTF0_20250816
["timestamp","ask_amount","ask_price","bid_price","bid_amount"]
[1755319444107,0.13775943,4452.0,4451.9,4.6612]
[1755319444714,0.39665943,4452.0,4451.9,4.6612]
[1755319445010,0.56495943,4452.0,4451.9,4.6612]
[1755319446113,0.13775943,4452.0,4451.9,4.6612]
[1755319446607,0.2589,4452.2,4452.0,0.8683]
[1755319446808,1.26792651,4452.1,4451.9,3.2078]
[1755319447005,0.71252651,4452.0,4451.9,3.2078]
[1755319447206,1.52682651,4452.0,4451.9,3.2078]
[1755319447403,1.52682651,4452.0,4451.4,3.2078]
[1755319447602,1.0179,4451.0,4450.9,4.0348]
[1755319447809,1.0179,4451.0,4450.9,4.3999]
[1755319447810,1.3891,4451.0,4450.9,4.3999]
[1755319448010,0.4272,4451.0,4450.9,4.6612]
[1755319448210,0.8337,4451.7,4451.6,0.5851]
[1755319448408,0.97139223,4451.7,4451.6,0.5851]
[1755319448608,1.15559223,4451.7,4451.6,1.1921]
[1755319448909,1.52679223,4451.7,4451.6,1.1921]
[1755319449314,1.34259223,4451.7,4451.6,1.1921]
[1755319449512,1.52679223,4451.7,4451.6,1.1921]
[1755319450407,1.3891,4451.7,4451.6,1.1921]
[1755319450603,1.52686159,4451.7,4451.6,1.1921]
[1755319451813,1.52686159,4451.7,4451.6,1.0245]
[1755319456610,1.52686159,4451.7,4451.6,0.6594]
[1755319457012,0.5748,4451.4,4451.3,0.9502]
[1755319457313,1.52686159,4451.4,4451.3,0.9502]
[1755319457708,1.52686159,4451.4,4451.3,1.1921]
[1755319460411,0.13776159,4451.4,4451.3,1.1921]
[1755319460610,0.13776159,4451.8,4451.3,0.8406]
[1755319460816,1.4047,4451.5,4451.4,1.2226]
[1755319461018,1.54246159,4451.5,4451.4,1.2226]
[1755319463018,1.54246159,4451.5,4451.4,1.4781]
[1755319464018,1.54246159,4451.5,4451.4,1.2226]
[1755319466612,0.93816159,4451.5,4451.4,1.2226]
[1755319466819,0.55476159,4451.5,4451.4,1.2226]
[1755319467010,0.80886159,4451.5,4451.4,1.4781]
[1755319467210,1.19226159,4451.5,4451.4,1.4781]
[1755319467410,1.37646159,4451.5,4451.4,1.4781]
[1755319467718,1.54246159,4451.5,4451.4,1.2226]
[1755319468919,1.19226159,4451.5,4451.4,1.2226]
[1755319469117,0.80886159,4451.5,4451.4,1.4781]
[1755319469518,1.19226159,4451.5,4451.4,1.4781]
[1755319469925,1.19226159,4451.5,4451.4,1.2226]
[1755319470225,0.13776159,4451.5,4451.4,1.2226]
[1755319470422,0.2564,4451.5,4451.4,1.4781]
[1755319470723,0.55492858,4451.5,4451.4,1.4781]
[1755319470926,1.35842858,4451.5,4451.4,1.4781]
[1755319471724,1.54262858,4451.5,4451.4,1.2226]
[1755319472725,1.35842858,4451.5,4451.4,1.2226]
[1755319474233,1.54262858,4451.5,4451.4,1.2226]
[1755319475329,1.54262858,4451.5,4451.1,0.375]
[1755319475530,1.4047,4451.3,4451.2,0.6341]
[1755319475726,1.54262858,4451.3,4451.2,1.0587]
[1755319475931,1.54262858,4451.3,4450.9,3.2078]
[1755319475932,1.4047,4451.2,4451.1,0.424]
[1755319476224,1.54262858,4451.2,4451.1,1.0587]
[1755319476531,1.54273212,4451.2,4451.1,1.2226]
[1755319484735,1.54273212,4451.2,4451.1,1.4781]
[1755319485035,1.54296175,4451.2,4451.1,1.4781]
[1755319492648,1.35876175,4451.2,4451.1,1.4781]
[1755319494735,1.35876175,4451.2,4451.1,2.63250171]
[1755319500547,1.54216175,4451.2,4451.1,2.37700171]
[1755319501548,1.4039,4451.2,4451.1,2.37700171]
[1755319501747,1.54217495,4451.2,4451.1,2.37700171]
[1755319502850,1.19277495,4451.2,4451.1,2.37700171]
[1755319504048,1.36837495,4451.2,4451.1,2.37700171]
[1755319504250,1.55177495,4451.2,4451.1,2.37700171]
[1755319504550,1.55178534,4451.2,4451.1,2.37700171]
[1755319504948,1.55178416,4451.2,4451.1,2.37700171]
[1755319509544,1.55178416,4451.2,4451.1,1.2226]
[1755319509752,1.55178416,4451.2,4451.1,0.6837]
[1755319510049,1.55178416,4451.2,4451.1,0.4246]
[1755319510345,1.3924,4451.0,4450.4,3.4664]
[1755319510550,2.54680171,4450.5,4450.4,3.6341]
[1755319510744,1.53068416,4450.5,4450.4,4.2528]
[1755319510946,1.53068416,4450.5,4450.4,4.4141]
[1755319511853,0.54868416,4450.5,4450.4,4.4141]
[1755319512041,0.38538416,4450.5,4450.4,4.6739]
[1755319512246,0.54868416,4450.5,4450.4,4.6739]
[1755319512647,0.54868416,4450.5,4450.4,6.11272322]
[1755319513051,0.90798416,4450.5,4450.4,6.11272322]
[1755319513350,0.90775475,4450.5,4450.4,6.11272322]
[1755319514852,1.17145475,4450.5,4450.4,6.11272322]
[1755319515555,1.53045475,4450.5,4450.4,4.4141]
[1755319516353,1.3924,4450.5,4450.4,4.4141]
[1755319516754,1.3924,4450.5,4450.4,4.6739]
[1755319518456,1.0196,4451.4,4451.3,0.6941]
[1755319518651,0.385159,4451.4,4451.3,2.67512322]
[1755319518858,0.385159,4451.4,4451.3,2.91912322]
[1755319519050,0.38512056,4451.4,4451.3,2.91912322]
[1755319519558,0.54662056,4451.4,4451.3,2.91912322]
[1755319519755,1.32372056,4451.4,4451.3,1.2363]
[1755319519955,1.50772056,4451.4,4451.3,1.2363]
[1755319520156,1.50772056,4451.4,4451.1,3.2078]
[1755319520358,1.16222056,4451.3,4451.2,1.3045]
[1755319520552,0.79012056,4451.3,4451.2,1.4803]
[1755319520754,0.38512056,4451.3,4451.2,1.4803]
[1755319521057,3.2078,4452.2,4451.1,4.64662322]
[1755319521058,0.2472,4451.9,4451.8,1.4803]
[1755319521258,0.54659509,4451.9,4451.8,1.4803]
[1755319521859,0.91399509,4451.9,4451.8,1.4803]
[1755319522062,1.15749509,4451.9,4451.8,1.4803]
[1755319523560,1.15749509,4451.9,4451.8,1.2363]
[1755319523862,1.50769509,4451.9,4451.8,1.2363]
[1755319524055,1.32369509,4451.9,4451.8,1.4803]
[1755319524452,0.79009509,4451.9,4451.8,1.4803]
[1755319524655,0.6522,4451.9,4451.8,1.4803]
[1755319524851,0.78999642,4451.9,4451.8,1.4803]
[1755319525264,0.6522,4451.9,4451.8,1.4803]
[1755319527662,0.6522,4451.9,4451.8,1.2363]
[1755319528567,1.1858,4451.9,4451.8,1.2363]
[1755319528868,1.43882322,4452.4,4451.7,0.2553]
[1755319529062,0.5712,4451.8,4451.7,0.2553]
[1755319529468,1.3698,4451.8,4451.7,0.2553]
[1755319529869,1.3698,4451.8,4451.7,0.4283]
[1755319530068,1.3698,4451.8,4451.7,1.2363]
[1755319531776,1.1858,4451.8,4451.7,1.2363]
[1755319532871,1.0196,4451.8,4451.7,1.2363]
[1755319533073,1.0196,4452.2,4452.1,0.6118]
[1755319533278,1.15726325,4452.2,4452.1,1.2363]
[1755319533576,1.15726325,4452.2,4452.1,1.4803]
[1755319533978,1.50746325,4452.2,4452.1,1.2363]
[1755319534180,1.50746325,4452.2,4452.1,1.0605]
[1755319535279,0.13766325,4452.2,4452.1,0.6913]
[1755319535482,1.50746325,4452.2,4452.1,1.2363]
[1755319536175,0.38486325,4452.2,4452.1,1.2363]
[1755319536379,1.50746325,4452.2,4452.1,4.4441]
[1755319537382,1.32346325,4452.2,4452.1,4.6881]
[1755319537583,1.50746325,4452.2,4452.1,4.6881]
[1755319538781,1.50746325,4452.2,4452.1,4.4441]
[1755319539177,1.3698,4452.2,4452.1,4.4441]
[1755319539374,1.15855218,4452.2,4452.1,4.4441]
[1755319539578,0.7986,4453.1,4452.2,0.8685]
[1755319539883,0.2472,4452.4,4452.3,2.91912322]
[1755319540077,0.2472,4452.6,4452.5,0.263]
[1755319540383,0.4087,4452.9,4452.8,0.6118]
[1755319540574,0.4087,4452.9,4452.8,2.91912322]
[1755319541178,0.2472,4453.1,4452.9,0.8685]
[1755319541484,3.6752,4453.2,4453.0,1.4803]
[1755319541485,0.1,4453.2,4453.0,1.4803]
[1755319541683,0.1,4453.2,4453.1,2.91912322]
[1755319542180,0.1,4453.2,4453.1,2.67512322]
[1755319542383,1.4698,4453.2,4453.1,1.2363]
[1755319543086,1.4698,4453.2,4452.9,3.4631]
[1755319543087,1.3698,4453.0,4452.9,3.4631]
[1755319543583,0.4087,4453.0,4452.9,4.4441]
[1755319543782,0.3472,4453.2,4453.1,0.6118]
[1755319543978,0.3472,4453.2,4453.1,2.91912322]
[1755319544179,0.1,4453.2,4453.1,2.91912322]
[1755319544575,0.7522,4453.2,4453.1,1.2363]
[1755319544780,1.4698,4453.2,4453.1,1.2363]
[1755319545583,1.4698,4453.2,4453.1,1.4803]
[1755319545785,1.1196,4453.2,4453.1,1.4803]
[1755319545975,0.7522,4453.2,4453.1,1.4803]
[1755319546178,1.1196,4453.2,4453.1,1.4803]
[1755319547286,0.3472,4453.2,4453.1,1.4803]
[1755319547489,0.1,4453.2,4453.1,1.4803]
[1755319547682,0.5087,4453.2,4453.1,1.2363]
[1755319547989,1.4698,4453.2,4453.1,1.2363]
[1755319548483,1.4698,4453.2,4453.1,0.4283]
[1755319548689,1.4698,4453.2,4452.9,3.2078]
[1755319548983,0.3293,4453.1,4453.0,1.2284]
[1755319549197,0.1597,4453.1,4453.0,1.4838]
[1755319549387,0.4236,4453.1,4453.0,1.4838]
[1755319549584,1.4015,4453.1,4453.0,1.2284]
[1755319550494,1.4015,4453.1,4453.0,0.6711]
[1755319551088,1.2173,4453.1,4453.0,1.4838]
[1755319551289,1.0477,4453.1,4453.0,2.92262322]
[1755319551792,0.6667,4453.1,4453.0,2.92262322]
[1755319552091,0.2639,4453.1,4453.0,2.10992322]
[1755319552288,1.4015,4453.1,4453.0,2.49462322]
[1755319552488,1.4015,4453.1,4453.0,1.0558]
[1755319552991,1.4015,4453.1,4453.0,0.1631]
[1755319553197,1.4015,4453.1,4452.9,3.2078]
[1755319553388,1.4015,4453.0,4452.9,3.2078]
[1755319554489,1.4015,4453.0,4452.9,3.6149]
[1755319554690,1.4015,4453.0,4452.9,3.8789]
[1755319555495,1.4015,4453.0,4452.9,3.2078]
[1755319555992,0.1,4453.2,4452.6,0.244]
[1755319556192,0.5724,4452.7,4452.4,3.2078]
[1755319556383,0.7566,4452.5,4451.9,3.2078]
[1755319556588,1.4015,4452.0,4451.9,3.2078]
[1755319557697,1.4015,4452.0,4451.9,4.0515]
[1755319557890,1.2173,4452.0,4451.9,4.4362]
[1755319558096,1.4015,4452.0,4451.9,4.4362]
[1755319558694,0.4236,4452.0,4451.9,6.13042322]
[1755319559092,1.0477,4452.0,4451.9,6.13042322]
[1755319559398,0.4236,4452.0,4451.9,6.13042322]
[1755319559592,0.8046,4452.0,4451.9,6.13042322]
[1755319559791,1.0477,4452.0,4451.9,6.13042322]
[1755319559992,1.4015,4452.0,4451.9,4.4362]
[1755319560393,1.4015,4452.0,4451.9,3.2078]
[1755319561492,1.4015,4452.0,4451.9,3.6149]
[1755319561696,1.4015,4452.0,4451.9,4.4362]
[1755319561999,0.4236,4452.0,4451.9,4.6916]
[1755319562789,0.2639,4452.9,4451.9,4.6916]
[1755319562995,1.2173,4452.7,4452.6,0.5997]
[1755319563296,1.2173,4452.7,4452.6,1.2284]
[1755319563297,1.35612531,4452.7,4452.6,1.2284]
[1755319563499,1.2173,4452.7,4452.6,1.2284]
[1755319563690,0.4236,4452.7,4452.6,1.4838]
[1755319564201,1.0477,4452.7,4452.6,1.4838]
[1755319564801,0.2639,4452.7,4452.6,1.4838]
[1755319564999,0.5652,4453.1,4452.6,1.4838]
[1755319565302,0.4028,4453.1,4453.0,0.5997]
[1755319565602,0.54162032,4453.1,4453.0,1.2284]
[1755319565795,0.8291,4453.0,4452.4,3.2078]
[1755319566002,1.0477,4452.6,4452.5,1.4838]
[1755319566196,0.4236,4452.6,4452.5,1.4838]
[1755319566397,0.1,4453.2,4452.5,1.4838]
[1755319566398,0.9363,4453.2,4453.1,0.1631]
[1755319566700,1.07514109,4453.2,4453.1,1.2284]
[1755319566902,1.25934109,4453.2,4453.1,1.2284]
[1755319567197,1.64034109,4453.2,4453.1,1.2284]
[1755319567800,0.4028,4452.5,4452.4,4.1922]
[1755319567994,1.4017,4452.5,4452.4,4.1922]
[1755319568398,1.4017,4452.5,4452.4,4.4362]
[1755319568599,1.2173,4452.5,4452.4,4.6916]
[1755319568799,1.0477,4452.5,4452.4,4.6916]
[1755319570000,0.4236,4452.5,4452.4,6.13042322]
[1755319570207,0.4236,4452.9,4452.8,1.4838]
[1755319571006,0.56657367,4452.9,4452.8,1.4838]
[1755319571202,0.9475734,4452.9,4452.8,1.4838]
[1755319571507,1.0477,4452.9,4452.8,1.4838]
[1755319571901,1.54466986,4452.9,4452.8,0.6711]
[1755319572502,1.54466986,4452.9,4452.8,1.2284]
[1755319573509,0.7667,4453.2,4453.1,0.5997]
[1755319573706,1.1477,4453.2,4453.1,2.66722322]
[1755319573902,1.1477,4453.2,4453.1,1.2284]
[1755319575110,1.1477,4453.2,4453.1,1.4838]
[1755319575908,0.5236,4453.2,4453.1,2.92262322]
[1755319576503,1.3173,4453.2,4453.1,1.2284]
[1755319577210,1.1477,4453.2,4453.1,1.2284]
[1755319577410,0.7667,4453.2,4453.1,1.2284]
[1755319577605,0.1,4453.2,4453.1,3.37139322]
[1755319578106,0.2639,4453.8,4453.2,0.4994]
[1755319578308,0.4236,4453.8,4453.7,1.4844]
[1755319578507,0.56659323,4453.8,4453.7,1.4844]
[1755319579104,0.381,4454.1,4453.7,0.5997]
[1755319579304,0.55264327,4454.0,4453.9,1.4917]
[1755319579608,1.16614327,4454.0,4453.9,1.4917]
[1755319580005,0.14294327,4454.0,4453.9,1.2301]
[1755319580205,0.6525,4454.6,4454.5,0.4247]
[1755319580410,1.5691114,4454.6,4454.5,1.2301]
[1755319581304,1.3280114,4454.6,4454.5,1.2301]
[1755319581505,1.3280114,4454.6,4454.5,1.4917]
[1755319581711,1.5691114,4454.6,4454.5,1.2301]
[1755319582306,1.1661114,4454.6,4454.5,1.2301]
[1755319582508,1.0232,4454.6,4454.5,4.4379]
[1755319582712,1.0232,4454.6,4454.5,4.6995]
[1755319583108,0.8554,4455.3,4454.5,4.1936]
[1755319583314,0.164,4454.7,4454.6,1.2301]
[1755319583614,1.0232,4454.7,4454.6,1.4917]
[1755319583818,1.4262,4454.7,4454.6,1.4917]
[1755319584514,1.1851,4454.7,4454.6,1.2301]
[1755319584705,1.4262,4454.7,4454.6,1.2301]
[1755319587214,1.4262,4454.7,4454.5,3.2078]
[1755319587415,0.5708,4454.7,4454.6,0.2443]
[1755319587611,0.5708,4454.7,4454.6,0.4181]
[1755319587816,0.5708,4454.7,4454.6,1.0543]
[1755319588015,1.4262,4454.7,4454.6,1.0543]
[1755319588313,1.4262,4454.7,4454.6,1.2301]
[1755319589210,1.4262,4454.1,4454.0,3.2078]
[1755319589515,1.4262,4454.1,4454.0,4.2621]
[1755319590016,1.4262,4454.1,4454.0,4.4379]
[1755319590818,1.4262,4454.1,4454.0,3.2078]
[1755319591418,1.4262,4454.1,4454.0,3.4521]
[1755319591818,1.4262,4454.1,4454.0,3.6259]
[1755319592019,1.4262,4454.1,4454.0,3.8768]
[1755319592312,0.2457,4454.6,4454.0,4.3142]
[1755319592515,0.4097,4454.6,4454.5,5.24712322]
[1755319592715,0.4097,4454.6,4454.5,6.13832322]
[1755319593524,0.8165,4454.6,4454.5,6.13832322]
[1755319593820,1.4262,4454.6,4454.5,5.87672322]
[1755319594020,1.4262,4454.6,4454.5,6.13832322]
[1755319594213,1.1851,4454.6,4454.5,6.13832322]
[1755319595222,0.4097,4454.6,4454.5,6.13832322]
[1755319595722,0.6546,4454.6,4454.5,6.13832322]
[1755319595920,1.0232,4454.6,4454.5,6.13832322]
[1755319596515,1.4262,4454.6,4454.5,6.13832322]
[1755319599223,1.1851,4454.6,4454.5,6.13832322]
[1755319601735,1.4262,4454.6,4454.5,6.13832322]
[1755319602735,1.0232,4454.6,4454.5,6.13832322]
[1755319603030,0.8554,4455.4,4454.7,0.2616]
[1755319603233,1.4262,4455.4,4455.3,0.1738]
[1755319603431,1.78229223,4455.4,4455.3,0.1738]
[1755319603734,0.5708,4455.2,4455.1,0.4181]
[1755319604036,1.56450827,4455.2,4455.1,1.2301]
[1755319606340,0.79290827,4455.2,4455.1,2.66892322]
[1755319606635,1.16150827,4455.2,4455.1,2.93052322]
[1755319607130,0.54800827,4455.2,4455.1,2.66892322]
[1755319607338,0.54800827,4455.2,4455.1,2.93052322]
[1755319607735,1.32340827,4455.2,4455.1,2.93052322]
[1755319607935,1.56450827,4455.2,4455.1,2.93052322]
[1755319608136,1.78206562,4455.2,4455.1,1.2301]
[1755319609142,1.78209547,4455.2,4455.1,1.2301]
[1755319609736,0.76559547,4455.2,4455.1,1.483]
[1755319609940,0.54800827,4455.2,4455.1,1.483]
[1755319610439,0.91340827,4455.2,4455.1,1.483]
[1755319610737,1.15260827,4455.2,4455.1,1.483]
[1755319611440,1.58180827,4455.2,4455.1,1.483]
[1755319612232,0.4397,4455.1,4455.0,0.4264]
[1755319612436,1.61180827,4455.1,4455.0,1.2121]
[1755319613037,1.35300827,4455.1,4455.0,1.465]
[1755319613846,1.61180827,4455.1,4455.0,1.465]
[1755319614247,1.4735,4455.1,4455.0,1.465]
[1755319614642,1.4735,4455.1,4455.0,1.2121]
[1755319616843,1.4735,4455.1,4455.0,1.465]
[1755319617440,1.2147,4455.1,4455.0,1.465]
[1755319618346,0.1704,4455.1,4455.0,1.2121]
[1755319618646,1.2147,4455.9,4455.8,0.5863]
[1755319618850,1.61188466,4455.9,4455.8,1.2121]
[1755319619345,1.61188466,4455.9,4455.8,0.6881]
[1755319620643,0.8493,4455.6,4455.5,3.2078]
[1755319620842,0.5855,4455.1,4455.0,3.2078]
[1755319621044,1.4735,4455.1,4455.0,3.2078]
[1755319621349,1.4735,4455.1,4455.0,3.6333]
[1755319621552,1.4735,4455.1,4455.0,5.85872322]
[1755319621852,1.4735,4455.1,4455.0,3.2078]
[1755319622038,0.13844192,4455.1,4454.5,1.43882322]
[1755319622244,0.888,4454.9,4454.5,0.9504]
[1755319622447,0.1759,4454.9,4454.8,2.64212322]
[1755319622652,1.2097,4455.4,4455.3,0.9504]
[1755319622949,1.61195328,4455.4,4455.3,1.2121]
[1755319623146,0.57815328,4455.4,4455.3,1.2121]
[1755319623338,0.57815328,4455.4,4455.3,1.465]
[1755319623746,1.18274454,4455.4,4455.3,1.465]
[1755319623949,0.2638,4455.9,4455.3,1.465]
[1755319624151,0.2638,4455.9,4455.1,5.09519322]
[1755319624152,0.57812554,4455.8,4455.7,4.6728]
[1755319624340,0.4397,4455.8,4455.7,4.6728]
[1755319624549,1.4735,4455.8,4455.7,4.6728]
[1755319624750,0.4397,4455.8,4455.7,4.4199]
[1755319625052,1.0443,4455.8,4455.7,4.6728]
[1755319625351,0.7805,4455.9,4455.8,1.2121]
[1755319625541,1.61187044,4455.9,4455.8,1.2121]
[1755319626553,0.13835646,4455.9,4455.8,1.2121]
[1755319626855,1.61185646,4455.9,4455.8,0.1638]
[1755319627353,0.2638,4455.9,4455.8,1.2121]
[1755319627546,1.0443,4455.9,4455.8,1.2121]
[1755319627751,1.4735,4455.9,4455.8,1.2121]
[1755319628045,0.5780426,4455.9,4455.8,1.465]
[1755319628239,0.8051,4455.9,4455.8,1.465]
[1755319628550,1.4735,4455.9,4455.7,4.64662322]
[1755319628746,1.4735,4455.8,4455.7,3.2078]
[1755319629251,1.4735,4455.8,4455.7,3.4695]
[1755319629445,1.4735,4455.8,4455.7,4.26]
[1755319629647,1.4735,4455.8,4455.7,5.85872322]
[1755319629948,3.2078,4456.5,4455.7,5.85872322]
[1755319630153,3.2078,4456.5,4455.7,5.49462322]
[1755319630154,0.1759,4455.8,4455.7,5.49462322]
[1755319630445,3.2078,4456.5,4455.8,0.2617]
[1755319630648,1.82835466,4456.4,4456.3,0.1638]
[1755319630848,0.888,4456.3,4456.2,0.7905]
[1755319631054,1.61103684,4456.3,4456.2,0.7905]
[1755319631257,1.61103684,4456.3,4456.2,0.9504]
[1755319631458,1.61103684,4456.3,4456.2,1.2121]
[1755319632156,0.13753684,4456.3,4456.2,1.2121]
[1755319632354,1.35223684,4456.3,4456.2,1.2121]
[1755319632651,0.13753684,4456.3,4456.2,1.2121]
[1755319632857,0.40133684,4456.3,4456.2,1.465]
[1755319633052,0.13753684,4456.3,4456.2,1.2121]
[1755319633251,0.81643684,4456.3,4456.2,1.465]
[1755319633555,0.40133684,4456.3,4456.2,4.6728]
[1755319633751,0.2638,4456.3,4456.2,4.6728]
[1755319637461,0.2638,4456.6,4456.2,4.24255]
[1755319637665,0.8051,4456.6,4456.5,2.64212322]
[1755319637861,0.8051,4456.6,4456.5,2.90382322]
[1755319638353,1.0443,4456.6,4456.5,2.90382322]
[1755319638765,1.2857,4456.6,4456.5,2.90382322]
[1755319639055,3.2078,4457.7,4456.5,2.02512322]
[1755319639364,3.2078,4457.7,4455.8,1.30239679]
[1755319639365,1.4482,4457.4,4457.3,2.03232322]
[1755319639550,1.58556412,4457.4,4457.3,2.65092322]
[1755319640457,1.34416412,4457.4,4457.3,2.65092322]
[1755319640663,1.58556412,4457.4,4457.3,2.65092322]
[1755319640863,0.8415,4457.4,4457.3,2.89862322]
[1755319641061,3.2078,4458.2,4457.3,2.89862322]
[1755319641062,3.2078,4458.2,4457.3,2.65092322]
[1755319641363,1.4482,4458.1,4458.0,2.10892322]
[1755319641556,0.5868,4458.1,4457.8,0.2464]
[1755319641756,1.4482,4457.4,4457.3,5.85872322]
[1755319641953,0.426,4457.4,4457.3,5.85872322]
[1755319642159,1.2844,4457.9,4457.8,1.2121]
[1755319642359,1.2769,4458.0,4457.9,1.2121]
[1755319642555,1.4482,4458.0,4457.9,1.2121]
[1755319643151,3.2078,4458.9,4457.9,1.2121]
[1755319643358,0.426,4458.1,4458.0,1.4598]
[1755319643561,0.6777,4458.1,4458.0,1.4598]
[1755319643762,0.5868,4458.1,4457.8,3.2078]
[1755319643961,1.4482,4457.9,4457.8,3.2078]
[1755319644266,1.2068,4457.9,4457.8,4.4199]
[1755319644455,0.426,4457.9,4457.8,4.6676]
[1755319645056,0.6777,4457.9,4457.8,4.6676]
[1755319645253,1.4482,4457.9,4457.8,4.6676]
[1755319646162,0.6777,4457.9,4457.8,4.6676]
[1755319646459,0.426,4457.9,4457.8,4.6676]
[1755319646854,0.423,4458.6,4458.5,0.4237]
[1755319647160,1.1935,4458.6,4458.5,2.65092322]
[1755319647466,1.4482,4458.6,4458.5,2.65092322]
[1755319647967,0.2547,4459.1,4458.5,2.65092322]
[1755319648165,0.6777,4458.6,4458.5,2.65222322]
[1755319648359,1.043,4458.6,4458.5,2.65222322]
[1755319648554,1.043,4458.6,4458.5,2.89862322]
[1755319649262,0.4961,4459.9,4458.6,0.2464]
[1755319649563,0.423,4458.9,4458.3,4.89302322]
[1755319649767,1.4482,4458.4,4458.3,5.31672322]
[1755319649962,1.4482,4458.4,4458.3,5.68892322]
[1755319650466,1.4482,4458.4,4458.3,5.85872322]
[1755319650862,1.4482,4458.4,4458.3,3.6249]
[1755319651058,1.4482,4458.4,4458.3,3.2078]
[1755319653769,1.4482,4458.4,4458.3,4.4199]
[1755319654266,1.4482,4458.4,4458.3,3.2078]
[1755319654961,0.5868,4457.7,4457.6,0.2464]
[1755319655166,1.4482,4457.7,4457.6,0.6701]
[1755319655466,1.2068,4457.7,4457.6,1.2121]
[1755319655671,0.426,4457.7,4457.6,4.6676]
[1755319656065,0.2547,4457.7,4457.6,4.6676]
[1755319656766,0.426,4457.7,4457.6,4.6676]
[1755319657264,0.426,4457.7,4457.6,4.2954]
[1755319657470,0.3653,4457.9,4457.1,0.44836]
[1755319657471,1.4482,4457.4,4457.3,0.2464]
[1755319658767,0.5868,4457.2,4457.1,3.2078]
[1755319659069,1.4482,4457.2,4457.1,3.2078]
[1755319659975,1.4482,4457.2,4456.6,3.4542]
[1755319660273,1.4482,4456.7,4456.6,4.4199]
[1755319665774,1.2068,4456.7,4456.6,4.6676]
[1755319666575,0.2414,4457.0,4456.6,4.6676]
[1755319666576,0.8614,4457.7,4456.6,3.2078]
[1755319666875,0.1,4460.2,4457.2,1.43882322]
[1755319666876,1.4482,4457.5,4457.2,1.43882322]
[1755319667074,1.4482,4457.0,4456.9,2.65092322]
[1755319667677,1.4482,4457.0,4456.9,2.10892322]
[1755319667873,1.4482,4457.0,4456.9,0.6701]
[1755319668268,0.3653,4456.9,4456.6,3.2078]
[1755319668467,1.43882322,4458.6,4456.6,3.2078]
[1755319668468,1.4611,4456.7,4456.6,3.2078]
[1755319668978,0.5875,4456.1,4456.0,3.7964]
[1755319669181,1.4611,4456.1,4456.0,3.623]
[1755319669475,1.4611,4456.1,4456.0,4.3951]
[1755319669872,1.221,4456.1,4456.0,4.3951]
[1755319670072,1.221,4456.1,4456.0,4.6396]
[1755319670073,1.0509,4456.1,4456.0,4.6396]
[1755319670266,0.6683,4456.1,4456.0,4.6396]
[1755319670471,1.221,4456.1,4456.0,4.3951]
[1755319670775,0.6683,4456.1,4456.0,4.6396]
[1755319670977,0.4226,4456.1,4456.0,4.6396]
[1755319671670,1.0509,4456.1,4456.0,4.6396]
[1755319671871,1.4611,4456.1,4456.0,3.2078]
[1755319674070,1.4611,4456.1,4456.0,3.623]
[1755319674473,1.4611,4456.1,4456.0,4.3951]
[1755319675273,0.2509,4456.5,4456.0,4.3951]
[1755319675470,0.2457,4456.3,4456.2,1.68702322]
[1755319675779,1.221,4456.3,4456.2,2.38632322]
[1755319675982,1.4611,4456.3,4456.2,2.38632322]
[1755319676279,1.4611,4456.3,4456.2,2.62612322]
[1755319676581,0.4226,4456.3,4456.2,2.87062322]
[1755319678782,0.2509,4456.3,4456.2,2.87062322]
[1755319679771,0.8736,4457.2,4456.4,0.5987]
[1755319679973,1.58260468,4457.1,4457.0,0.655]
[1755319680378,1.58260468,4457.1,4457.0,0.4068]
[1755319680573,1.2154,4456.7,4456.6,0.4068]
[1755319680781,1.4611,4456.1,4456.0,4.3951]
[1755319687996,1.4611,4456.1,4456.0,4.0362]
[1755319688393,1.4611,4456.1,4456.0,4.3951]
[1755319689893,1.4611,4456.1,4456.0,4.6396]
[1755319692086,1.59972879,4458.4,4456.0,4.6396]
[1755319692087,1.59972879,4458.4,4457.4,0.5886]
[1755319692399,3.2078,4458.6,4458.5,0.5886]
[1755319692694,5.38209383,4458.6,4458.5,0.4068]
[1755319692993,1.221,4458.2,4458.1,0.5886]
[1755319693189,1.35238708,4458.2,4458.1,0.5886]
[1755319693493,1.35238708,4458.2,4458.1,1.1873]
[1755319694089,0.2509,4458.2,4458.1,1.4318]
[1755319694896,1.4611,4458.2,4458.0,3.2078]
[1755319695100,1.4611,4458.1,4458.0,3.2078]
[1755319695997,0.5875,4457.5,4457.4,2.02742322]
[1755319696297,1.4611,4457.5,4457.4,2.62612322]
[1755319696508,1.221,4457.5,4457.4,2.87062322]
[1755319696799,1.221,4457.5,4457.4,2.62612322]
[1755319697601,1.221,4457.5,4457.4,2.87062322]
[1755319698001,1.4611,4457.5,4457.4,2.62612322]
[1755319698802,1.221,4457.5,4457.4,2.62612322]
[1755319699100,1.221,4457.5,4457.4,2.86802322]
[1755319699901,0.2481,4458.0,4457.4,2.62612322]
[1755319700096,0.9803,4457.9,4457.8,0.5925]
[1755319700295,1.0536,4457.9,4457.8,1.2285]
[1755319700502,1.0536,4457.9,4457.8,1.4704]
[1755319700805,1.4827,4457.9,4457.8,1.2285]
[1755319701098,0.4227,4457.9,4457.8,1.2285]
[1755319701305,0.4227,4457.9,4457.3,3.2078]
[1755319701306,1.2346,4457.9,4457.3,3.2078]
[1755319701497,1.4827,4457.4,4457.3,3.2078]
[1755319701699,1.4827,4457.4,4457.3,4.4363]
[1755319702002,0.2481,4457.7,4457.6,0.5925]
[1755319702192,1.2284,4458.7,4458.6,0.4248]
[1755319702398,1.4827,4458.7,4458.6,2.66732322]
[1755319702905,1.4827,4458.7,4458.6,1.2285]
[1755319703097,1.2284,4458.7,4458.6,1.2285]
[1755319703300,0.3695,4459.1,4458.6,1.4704]
[1755319703498,0.1746,4459.0,4458.9,2.03132322]